[Event "Early-Titled-Tuesday-Blitz-August-29-2023"]
[Site "Chess.com"]
[Date "2023.08.29"]
[Round "10"]
[White "fabianvivasz"]
[Black "RandomNoob04"]
[Result "0-1"]
[WhiteElo "2425"]
[BlackElo "2628"]
[TimeControl "180+1"]
[EndTime "9:51:26 PDT"]
[Termination "RandomNoob04 won on time"]

1. e4 {[%clk 0:02:53.3]} 1... e5 {[%clk 0:03:00.3]} 2. Nf3 {[%clk 0:02:52.3]}
2... Nf6 {[%clk 0:03:00.5]} 3. d4 {[%clk 0:02:51.7]} 3... Nxe4 {[%clk 0:02:58]}
4. Bd3 {[%clk 0:02:52.2]} 4... d5 {[%clk 0:02:58]} 5. Nxe5 {[%clk 0:02:52.4]}
5... Nd7 {[%clk 0:02:58.8]} 6. Nc3 {[%clk 0:02:52.6]} 6... Nxe5 {[%clk
0:02:50.5]} 7. dxe5 {[%clk 0:02:53]} 7... Nxc3 {[%clk 0:02:47.4]} 8. bxc3 {[%clk
0:02:53.9]} 8... Be7 {[%clk 0:02:44.3]} 9. O-O {[%clk 0:02:46.3]} 9... O-O
{[%clk 0:02:44]} 10. Rb1 {[%clk 0:02:46]} 10... b6 {[%clk 0:02:42.9]} 11. f4
{[%clk 0:01:47.3]} 11... Bc5+ {[%clk 0:02:40.5]} 12. Kh1 {[%clk 0:01:47.2]}
12... Qh4 {[%clk 0:02:41.4]} 13. Qf3 {[%clk 0:01:28.4]} 13... Bb7 {[%clk
0:02:37.2]} 14. f5 {[%clk 0:01:13.9]} 14... Rab8 {[%clk 0:02:33]} 15. Bf4 {[%clk
0:00:58.9]} 15... d4 {[%clk 0:02:31.5]} 16. Be4 {[%clk 0:00:59]} 16... Bxe4
{[%clk 0:02:28.4]} 17. Qxe4 {[%clk 0:00:59.9]} 17... dxc3 {[%clk 0:02:27]} 18.
Rf3 {[%clk 0:00:53.1]} 18... Rbd8 {[%clk 0:02:17.9]} 19. Rbf1 {[%clk 0:00:10.6]}
19... Rd4 {[%clk 0:02:10.1]} 20. Qc6 {[%clk 0:00:07.7]} 20... Rfd8 {[%clk
0:02:10.3]} 21. Be3 {[%clk 0:00:04.5]} 21... Rc4 {[%clk 0:01:59.3]} 22. e6
{[%clk 0:00:02.6]} 22... Bxe3 {[%clk 0:01:56.1]} 23. exf7+ {[%clk 0:00:01.8]}
23... Kf8 {[%clk 0:01:51.7]} 24. Qe6 {[%clk 0:00:01]} 24... Bc5 {[%clk 0:01:40]}
0-1

[Event "Early-Titled-Tuesday-Blitz-August-29-2023"]
[Site "Chess.com"]
[Date "2023.08.29"]
[Round "10"]
[White "zozik"]
[Black "joksijoksi"]
[Result "1-0"]
[WhiteElo "2354"]
[BlackElo "2454"]
[TimeControl "180+1"]
[EndTime "9:51:51 PDT"]
[Termination "zozik won by resignation"]

1. d4 {[%clk 0:02:59.8]} 1... d5 {[%clk 0:02:58.9]} 2. Nf3 {[%clk 0:02:59.3]}
2... Nf6 {[%clk 0:02:58.3]} 3. g3 {[%clk 0:03:00.2]} 3... h5 {[%clk 0:02:45.9]}
4. Bg2 {[%clk 0:02:59]} 4... Bg4 {[%clk 0:02:44.3]} 5. O-O {[%clk 0:02:56.3]}
5... Bxf3 {[%clk 0:02:44]} 6. Bxf3 {[%clk 0:02:55.8]} 6... h4 {[%clk 0:02:44.6]}
7. c4 {[%clk 0:02:56.3]} 7... e6 {[%clk 0:02:41.3]} 8. Qb3 {[%clk 0:02:54.2]}
8... b6 {[%clk 0:02:25]} 9. Bg5 {[%clk 0:02:50.3]} 9... c6 {[%clk 0:02:23.6]}
10. Nc3 {[%clk 0:02:48.3]} 10... hxg3 {[%clk 0:02:16.8]} 11. hxg3 {[%clk
0:02:47.8]} 11... Be7 {[%clk 0:02:17.4]} 12. Kg2 {[%clk 0:02:47.5]} 12... Nbd7
{[%clk 0:02:00.5]} 13. Rh1 {[%clk 0:02:46.5]} 13... Rxh1 {[%clk 0:01:59.5]} 14.
Rxh1 {[%clk 0:02:47.4]} 14... Nf8 {[%clk 0:01:58.8]} 15. e4 {[%clk 0:02:31.9]}
15... dxe4 {[%clk 0:01:56.6]} 16. Nxe4 {[%clk 0:02:23.2]} 16... Nxe4 {[%clk
0:01:50.8]} 17. Bxe4 {[%clk 0:02:15.6]} 17... Bxg5 {[%clk 0:01:43.4]} 18. Bxc6+
{[%clk 0:02:14.5]} 18... Ke7 {[%clk 0:01:39.8]} 19. Qa3+ {[%clk 0:02:11.6]}
19... Kf6 {[%clk 0:01:28.5]} 20. Qf3+ {[%clk 0:02:11.1]} 20... Kg6 {[%clk
0:01:29.1]} 21. Bxa8 {[%clk 0:02:02.7]} 21... Qxd4 {[%clk 0:01:22.7]} 22. Qe4+
{[%clk 0:02:02.4]} 22... Qxe4+ {[%clk 0:01:22.3]} 23. Bxe4+ {[%clk 0:02:03]}
23... Kf6 {[%clk 0:01:23]} 24. f4 {[%clk 0:02:02.2]} 24... Bh6 {[%clk
0:01:22.8]} 25. Kf3 {[%clk 0:01:59.9]} 25... e5 {[%clk 0:01:19.2]} 26. Rd1
{[%clk 0:01:56.8]} 26... exf4 {[%clk 0:01:17.9]} 27. gxf4 {[%clk 0:01:57.7]}
27... Ne6 {[%clk 0:01:18]} 28. Rd7 {[%clk 0:01:51.6]} 28... Bxf4 {[%clk
0:01:14]} 29. Rxa7 {[%clk 0:01:49.6]} 29... Bc1 {[%clk 0:01:07.8]} 30. b4 {[%clk
0:01:46.9]} 30... g5 {[%clk 0:01:02.5]} 31. Bd5 {[%clk 0:01:46.1]} 31... Nd4+
{[%clk 0:00:57.2]} 32. Kg4 {[%clk 0:01:43.7]} 32... Ne6 {[%clk 0:00:45.9]} 33.
Rb7 {[%clk 0:01:41.6]} 33... Ke5 {[%clk 0:00:44.2]} 34. Rxf7 {[%clk 0:01:37.4]}
34... Nd4 {[%clk 0:00:38.2]} 35. a4 {[%clk 0:01:27.9]} 35... Ba3 {[%clk
0:00:35.8]} 36. a5 {[%clk 0:01:27]} 36... bxa5 {[%clk 0:00:35.2]} 37. bxa5
{[%clk 0:01:27.7]} 1-0

[Event "Early-Titled-Tuesday-Blitz-August-29-2023"]
[Site "Chess.com"]
[Date "2023.08.29"]
[Round "10"]
[White "Irina_Mikhaylova"]
[Black "tk22h"]
[Result "1-0"]
[WhiteElo "2306"]
[BlackElo "2405"]
[TimeControl "180+1"]
[EndTime "9:51:52 PDT"]
[Termination "Irina_Mikhaylova won by resignation"]

1. Nf3 {[%clk 0:03:00]} 1... Nf6 {[%clk 0:02:59.7]} 2. c4 {[%clk 0:02:59.6]}
2... c5 {[%clk 0:02:58.6]} 3. Nc3 {[%clk 0:02:59.6]} 3... d5 {[%clk 0:02:55.1]}
4. cxd5 {[%clk 0:02:58.7]} 4... Nxd5 {[%clk 0:02:55.3]} 5. e4 {[%clk 0:02:55.9]}
5... Nxc3 {[%clk 0:02:55.1]} 6. dxc3 {[%clk 0:02:54.7]} 6... Qxd1+ {[%clk
0:02:54.9]} 7. Kxd1 {[%clk 0:02:54.1]} 7... Bg4 {[%clk 0:02:53.6]} 8. Be2 {[%clk
0:02:53.4]} 8... Nd7 {[%clk 0:02:52.4]} 9. Kc2 {[%clk 0:02:51.5]} 9... O-O-O
{[%clk 0:02:52.1]} 10. Be3 {[%clk 0:02:47.2]} 10... Bxf3 {[%clk 0:02:51.8]} 11.
Bxf3 {[%clk 0:02:46.8]} 11... e6 {[%clk 0:02:51.6]} 12. Be2 {[%clk 0:02:40]}
12... b6 {[%clk 0:02:51.2]} 13. Ba6+ {[%clk 0:02:28]} 13... Kc7 {[%clk
0:02:50.3]} 14. Rad1 {[%clk 0:01:58.8]} 14... Bd6 {[%clk 0:02:48.4]} 15. f4
{[%clk 0:01:54.9]} 15... Nb8 {[%clk 0:02:47.5]} 16. Be2 {[%clk 0:01:53.5]} 16...
Be7 {[%clk 0:02:47.4]} 17. h4 {[%clk 0:01:42.6]} 17... Rxd1 {[%clk 0:02:43.9]}
18. Bxd1 {[%clk 0:01:42.5]} 18... h5 {[%clk 0:02:41]} 19. Bf3 {[%clk 0:01:38.3]}
19... g6 {[%clk 0:02:41]} 20. g3 {[%clk 0:01:26.6]} 20... Nd7 {[%clk 0:02:40.5]}
21. e5 {[%clk 0:01:22.2]} 21... Nb8 {[%clk 0:02:38.5]} 22. Rd1 {[%clk
0:01:21.5]} 22... Rd8 {[%clk 0:02:37.9]} 23. Rxd8 {[%clk 0:01:20.8]} 23... Bxd8
{[%clk 0:02:38.2]} 24. Kd3 {[%clk 0:01:20.8]} 24... a6 {[%clk 0:02:32.8]} 25. b4
{[%clk 0:01:20.8]} 25... cxb4 {[%clk 0:02:32.2]} 26. cxb4 {[%clk 0:01:20.9]}
26... Be7 {[%clk 0:02:32.8]} 27. a3 {[%clk 0:01:20.1]} 27... Nc6 {[%clk
0:02:31.2]} 28. Bf2 {[%clk 0:01:14.7]} 28... Bd8 {[%clk 0:02:25.9]} 29. g4
{[%clk 0:01:12.1]} 29... hxg4 {[%clk 0:02:24.9]} 30. Bxg4 {[%clk 0:01:12.6]}
30... Ne7 {[%clk 0:02:24.7]} 31. h5 {[%clk 0:01:12.4]} 31... gxh5 {[%clk
0:02:22.7]} 32. Bxh5 {[%clk 0:01:12.7]} 32... Ng6 {[%clk 0:02:22.8]} 33. Ke4
{[%clk 0:01:04.4]} 33... Be7 {[%clk 0:02:16.9]} 34. f5 {[%clk 0:01:00.4]} 34...
exf5+ {[%clk 0:02:17]} 35. Kxf5 {[%clk 0:01:00.8]} 35... Nh8 {[%clk 0:02:03.9]}
36. Bd4 {[%clk 0:00:52.5]} 36... a5 {[%clk 0:02:00.6]} 37. bxa5 {[%clk
0:00:37.4]} 37... bxa5 {[%clk 0:02:00.7]} 38. a4 {[%clk 0:00:37.9]} 38... Kc6
{[%clk 0:02:01.1]} 39. e6 {[%clk 0:00:37.1]} 39... fxe6+ {[%clk 0:02:00]} 40.
Kxe6 {[%clk 0:00:37.3]} 40... Bb4 {[%clk 0:01:41.2]} 41. Bf3+ {[%clk 0:00:28.1]}
1-0

[Event "Early-Titled-Tuesday-Blitz-August-29-2023"]
[Site "Chess.com"]
[Date "2023.08.29"]
[Round "10"]
[White "FormerProdigy"]
[Black "albi1999"]
[Result "1-0"]
[WhiteElo "2864"]
[BlackElo "2674"]
[TimeControl "180+1"]
[EndTime "9:51:56 PDT"]
[Termination "FormerProdigy won by resignation"]

1. c4 {[%clk 0:03:00.9]} 1... Nf6 {[%clk 0:02:55.9]} 2. Nf3 {[%clk 0:03:00.5]}
2... c5 {[%clk 0:02:53.9]} 3. Nc3 {[%clk 0:02:58.3]} 3... e6 {[%clk 0:02:52.1]}
4. e3 {[%clk 0:02:56.1]} 4... d5 {[%clk 0:02:51.2]} 5. d4 {[%clk 0:02:56.6]}
5... a6 {[%clk 0:02:50.7]} 6. b3 {[%clk 0:02:52.7]} 6... cxd4 {[%clk 0:02:43]}
7. exd4 {[%clk 0:02:53.6]} 7... Be7 {[%clk 0:02:36]} 8. Bb2 {[%clk 0:02:46.6]}
8... O-O {[%clk 0:02:35.7]} 9. Be2 {[%clk 0:02:38.5]} 9... dxc4 {[%clk
0:02:34.6]} 10. bxc4 {[%clk 0:02:38]} 10... b6 {[%clk 0:02:34.1]} 11. O-O {[%clk
0:02:14.2]} 11... Bb7 {[%clk 0:02:34.2]} 12. Rb1 {[%clk 0:02:04.3]} 12... Nc6
{[%clk 0:02:26.8]} 13. Ba1 {[%clk 0:01:55]} 13... Rc8 {[%clk 0:02:05.8]} 14. Na4
{[%clk 0:01:45.6]} 14... Nd7 {[%clk 0:01:37]} 15. d5 {[%clk 0:01:40.8]} 15...
exd5 {[%clk 0:01:37.9]} 16. cxd5 {[%clk 0:01:41.4]} 16... Na5 {[%clk 0:01:29.3]}
17. Nd4 {[%clk 0:01:04.3]} 17... Bf6 {[%clk 0:01:18.2]} 18. Nf5 {[%clk
0:00:55.6]} 18... Bxa1 {[%clk 0:01:16.6]} 19. Rxa1 {[%clk 0:00:56.5]} 19... Nc5
{[%clk 0:01:11.1]} 20. Qd4 {[%clk 0:00:35.8]} 20... Qg5 {[%clk 0:01:08.3]} 21.
Nxb6 {[%clk 0:00:35.9]} 21... Qxf5 {[%clk 0:00:56.2]} 22. Nxc8 {[%clk
0:00:36.1]} 22... Rxc8 {[%clk 0:00:45.1]} 23. Bg4 {[%clk 0:00:35.8]} 1-0

[Event "Early-Titled-Tuesday-Blitz-August-29-2023"]
[Site "Chess.com"]
[Date "2023.08.29"]
[Round "10"]
[White "artin10862"]
[Black "crescentmoon2411"]
[Result "1-0"]
[WhiteElo "2833"]
[BlackElo "3007"]
[TimeControl "180+1"]
[EndTime "9:52:00 PDT"]
[Termination "artin10862 won by resignation"]

1. Nf3 {[%clk 0:03:00.9]} 1... Nf6 {[%clk 0:02:55]} 2. c4 {[%clk 0:02:59.2]}
2... e6 {[%clk 0:02:52.3]} 3. Nc3 {[%clk 0:02:58.5]} 3... d5 {[%clk 0:02:53.2]}
4. d4 {[%clk 0:02:58.4]} 4... c5 {[%clk 0:02:53.3]} 5. cxd5 {[%clk 0:02:55.2]}
5... Nxd5 {[%clk 0:02:50.1]} 6. e4 {[%clk 0:02:48.1]} 6... Nxc3 {[%clk
0:02:50.1]} 7. bxc3 {[%clk 0:02:49]} 7... cxd4 {[%clk 0:02:51]} 8. cxd4 {[%clk
0:02:49.9]} 8... Bb4+ {[%clk 0:02:51.6]} 9. Bd2 {[%clk 0:02:50.4]} 9... Bxd2+
{[%clk 0:02:52.3]} 10. Qxd2 {[%clk 0:02:51.1]} 10... O-O {[%clk 0:02:52.6]} 11.
Rc1 {[%clk 0:02:48.8]} 11... b6 {[%clk 0:00:58.4]} 12. Bd3 {[%clk 0:02:36]}
12... Bb7 {[%clk 0:00:56.4]} 13. O-O {[%clk 0:02:36.3]} 13... Nd7 {[%clk
0:00:55.1]} 14. Qf4 {[%clk 0:02:27.9]} 14... Rc8 {[%clk 0:00:42]} 15. Rxc8
{[%clk 0:02:27.1]} 15... Qxc8 {[%clk 0:00:40.8]} 16. Rc1 {[%clk 0:02:27.7]}
16... Qb8 {[%clk 0:00:29.8]} 17. Qxb8 {[%clk 0:01:59.5]} 17... Rxb8 {[%clk
0:00:29.3]} 18. Rc7 {[%clk 0:01:59.7]} 18... Nf6 {[%clk 0:00:29.7]} 19. Ng5
{[%clk 0:01:58.8]} 19... h6 {[%clk 0:00:21.9]} 20. Nxf7 {[%clk 0:01:54.9]} 20...
Ne8 {[%clk 0:00:20]} 21. Rd7 {[%clk 0:01:44.6]} 21... Rc8 {[%clk 0:00:17.2]} 22.
Rxb7 {[%clk 0:01:41.6]} 22... Rc1+ {[%clk 0:00:15.7]} 23. Bf1 {[%clk 0:01:41.7]}
23... Nf6 {[%clk 0:00:13.2]} 24. Nd6 {[%clk 0:01:40]} 24... Rd1 {[%clk
0:00:10.9]} 25. f3 {[%clk 0:01:34.8]} 25... Rxd4 {[%clk 0:00:10.6]} 26. Nb5
{[%clk 0:01:35.5]} 26... Rd1 {[%clk 0:00:09.1]} 27. Rxa7 {[%clk 0:01:36.1]}
27... Nh5 {[%clk 0:00:09.1]} 28. Kf2 {[%clk 0:01:35.8]} 28... Nf4 {[%clk
0:00:07.6]} 29. g3 {[%clk 0:01:35.9]} 29... Ng6 {[%clk 0:00:07.4]} 30. Rb7
{[%clk 0:01:35.8]} 30... Rd2+ {[%clk 0:00:07.3]} 31. Ke3 {[%clk 0:01:35.9]}
31... Rxa2 {[%clk 0:00:05.5]} 32. Bc4 {[%clk 0:01:36.1]} 32... Rxh2 {[%clk
0:00:04.2]} 33. Bxe6+ {[%clk 0:01:36.5]} 1-0

[Event "Early-Titled-Tuesday-Blitz-August-29-2023"]
[Site "Chess.com"]
[Date "2023.08.29"]
[Round "10"]
[White "cool64chess"]
[Black "jk13"]
[Result "0-1"]
[WhiteElo "2533"]
[BlackElo "2668"]
[TimeControl "180+1"]
[EndTime "9:52:14 PDT"]
[Termination "jk13 won by resignation"]

1. d4 {[%clk 0:03:00.9]} 1... Nf6 {[%clk 0:02:59.1]} 2. c4 {[%clk 0:02:39.9]}
2... e6 {[%clk 0:02:59.1]} 3. Nc3 {[%clk 0:02:35]} 3... Bb4 {[%clk 0:02:59.3]}
4. f3 {[%clk 0:02:34.2]} 4... c5 {[%clk 0:02:57.7]} 5. d5 {[%clk 0:02:33.1]}
5... d6 {[%clk 0:02:53]} 6. e4 {[%clk 0:02:29.7]} 6... b5 {[%clk 0:02:51.3]} 7.
Bd3 {[%clk 0:02:25.8]} 7... O-O {[%clk 0:02:47.8]} 8. Ne2 {[%clk 0:02:21.1]}
8... exd5 {[%clk 0:02:41.6]} 9. cxd5 {[%clk 0:02:19.2]} 9... c4 {[%clk 0:02:36]}
10. Bc2 {[%clk 0:02:18.7]} 10... Nbd7 {[%clk 0:02:36.1]} 11. O-O {[%clk
0:02:13.4]} 11... a6 {[%clk 0:02:36.5]} 12. Nd4 {[%clk 0:02:07.6]} 12... Bc5
{[%clk 0:02:32.5]} 13. Kh1 {[%clk 0:02:05.8]} 13... Ne5 {[%clk 0:02:25.8]} 14.
f4 {[%clk 0:01:58.9]} 14... Bg4 {[%clk 0:02:18.1]} 15. Qd2 {[%clk 0:01:55.3]}
15... Nd3 {[%clk 0:01:18.6]} 16. Nc6 {[%clk 0:01:51.9]} 16... Qb6 {[%clk
0:01:12.6]} 17. Bxd3 {[%clk 0:01:46.2]} 17... cxd3 {[%clk 0:01:13.5]} 18. e5
{[%clk 0:01:46]} 18... dxe5 {[%clk 0:01:02.4]} 19. fxe5 {[%clk 0:01:42.8]} 19...
Nxd5 {[%clk 0:01:01.7]} 20. Nxd5 {[%clk 0:01:32.5]} 20... Qxc6 {[%clk
0:01:01.7]} 21. Qxd3 {[%clk 0:00:56.6]} 21... Rad8 {[%clk 0:00:44.3]} 22. Nf6+
{[%clk 0:00:28.2]} 22... Qxf6 {[%clk 0:00:39.6]} 23. exf6 {[%clk 0:00:22.9]}
23... Rxd3 {[%clk 0:00:39]} 24. fxg7 {[%clk 0:00:22.7]} 24... Kxg7 {[%clk
0:00:34.7]} 0-1

[Event "Early-Titled-Tuesday-Blitz-August-29-2023"]
[Site "Chess.com"]
[Date "2023.08.29"]
[Round "10"]
[White "HElissalt"]
[Black "vishwa_vijeta"]
[Result "0-1"]
[WhiteElo "2350"]
[BlackElo "2516"]
[TimeControl "180+1"]
[EndTime "9:52:24 PDT"]
[Termination "vishwa_vijeta won by resignation"]

1. d4 {[%clk 0:03:00.9]} 1... Nf6 {[%clk 0:02:58.6]} 2. c4 {[%clk 0:02:52.3]}
2... g6 {[%clk 0:02:57.6]} 3. Nc3 {[%clk 0:02:51.8]} 3... d5 {[%clk 0:02:57.4]}
4. cxd5 {[%clk 0:02:51.1]} 4... Nxd5 {[%clk 0:02:55.8]} 5. Bd2 {[%clk
0:02:51.6]} 5... Bg7 {[%clk 0:02:54.4]} 6. e4 {[%clk 0:02:49.7]} 6... Nxc3
{[%clk 0:02:54.5]} 7. Bxc3 {[%clk 0:02:49]} 7... O-O {[%clk 0:02:55.4]} 8. h4
{[%clk 0:02:47.1]} 8... c5 {[%clk 0:02:56.3]} 9. d5 {[%clk 0:02:45.9]} 9...
Bxc3+ {[%clk 0:02:53.8]} 10. bxc3 {[%clk 0:02:46]} 10... Qa5 {[%clk 0:02:54.3]}
11. Qd2 {[%clk 0:02:45.8]} 11... h5 {[%clk 0:02:45.9]} 12. Nf3 {[%clk
0:01:46.1]} 12... e6 {[%clk 0:02:44.1]} 13. c4 {[%clk 0:01:35.6]} 13... Qxd2+
{[%clk 0:02:40.2]} 14. Kxd2 {[%clk 0:01:32.3]} 14... exd5 {[%clk 0:02:41.1]} 15.
exd5 {[%clk 0:01:26.8]} 15... b6 {[%clk 0:02:40.4]} 16. Bd3 {[%clk 0:01:14.6]}
16... Bg4 {[%clk 0:02:35.2]} 17. Ne5 {[%clk 0:01:08.7]} 17... Nd7 {[%clk
0:02:30.6]} 18. Nxg4 {[%clk 0:01:08.5]} 18... hxg4 {[%clk 0:02:31.5]} 19. a4
{[%clk 0:01:08.3]} 19... Kg7 {[%clk 0:02:30.8]} 20. g3 {[%clk 0:00:57.5]} 20...
Ne5 {[%clk 0:02:29.8]} 21. Kc3 {[%clk 0:00:54.2]} 21... Nf3 {[%clk 0:02:21.2]}
22. a5 {[%clk 0:00:52.4]} 22... f5 {[%clk 0:02:15.5]} 23. Ra2 {[%clk 0:00:43.2]}
23... f4 {[%clk 0:02:08.9]} 24. h5 {[%clk 0:00:37.9]} 24... fxg3 {[%clk
0:02:06.2]} 25. fxg3 {[%clk 0:00:37.7]} 25... Ne5 {[%clk 0:02:05.4]} 26. Be4
{[%clk 0:00:31.5]} 26... Rh8 {[%clk 0:01:46.5]} 27. h6+ {[%clk 0:00:25.9]} 27...
Kf6 {[%clk 0:01:28.3]} 28. axb6 {[%clk 0:00:21.3]} 28... axb6 {[%clk 0:01:27.8]}
29. Rxa8 {[%clk 0:00:19.4]} 29... Rxa8 {[%clk 0:01:28.7]} 30. h7 {[%clk
0:00:19.5]} 30... Kg7 {[%clk 0:01:27]} 31. h8=Q+ {[%clk 0:00:14.9]} 31... Rxh8
{[%clk 0:01:25.5]} 32. Rxh8 {[%clk 0:00:15]} 32... Kxh8 {[%clk 0:01:26.4]} 33.
d6 {[%clk 0:00:15.5]} 33... Kg7 {[%clk 0:01:24]} 34. Bd5 {[%clk 0:00:14.5]}
34... Kf6 {[%clk 0:01:23.1]} 35. Kd2 {[%clk 0:00:14.1]} 35... Nd7 {[%clk
0:01:20.3]} 36. Ke3 {[%clk 0:00:13.7]} 36... Ke5 {[%clk 0:01:20.6]} 37. Bf7
{[%clk 0:00:12.6]} 37... Kxd6 {[%clk 0:01:17.2]} 38. Bxg6 {[%clk 0:00:12.8]}
38... Ne5 {[%clk 0:01:18.1]} 39. Bf5 {[%clk 0:00:11.1]} 39... Nxc4+ {[%clk
0:01:18]} 40. Ke4 {[%clk 0:00:10]} 40... Ne5 {[%clk 0:01:15.9]} 0-1

[Event "Early-Titled-Tuesday-Blitz-August-29-2023"]
[Site "Chess.com"]
[Date "2023.08.29"]
[Round "10"]
[White "Gauravthegm"]
[Black "santosalberto1987"]
[Result "1/2-1/2"]
[WhiteElo "2432"]
[BlackElo "2547"]
[TimeControl "180+1"]
[EndTime "9:52:26 PDT"]
[Termination "Game drawn by repetition"]

1. e4 {[%clk 0:03:00.9]} 1... e6 {[%clk 0:02:59.6]} 2. d4 {[%clk 0:02:59]} 2...
d5 {[%clk 0:03:00]} 3. Bd3 {[%clk 0:02:59.1]} 3... dxe4 {[%clk 0:02:59.3]} 4.
Bxe4 {[%clk 0:02:59.6]} 4... Nf6 {[%clk 0:03:00.2]} 5. Bf3 {[%clk 0:02:59.7]}
5... Bd6 {[%clk 0:02:59.2]} 6. Ne2 {[%clk 0:02:59.2]} 6... O-O {[%clk
0:02:57.8]} 7. O-O {[%clk 0:02:59.4]} 7... e5 {[%clk 0:02:58]} 8. Bg5 {[%clk
0:02:42.6]} 8... Nbd7 {[%clk 0:02:53.9]} 9. Nbc3 {[%clk 0:02:36.7]} 9... h6
{[%clk 0:02:53.9]} 10. Bh4 {[%clk 0:02:35]} 10... Re8 {[%clk 0:02:51.5]} 11. Re1
{[%clk 0:02:17.9]} 11... g5 {[%clk 0:02:38.8]} 12. dxe5 {[%clk 0:02:16.8]} 12...
Nxe5 {[%clk 0:02:35.8]} 13. Bg3 {[%clk 0:02:14.4]} 13... Nxf3+ {[%clk
0:02:35.8]} 14. gxf3 {[%clk 0:02:14.3]} 14... Bf5 {[%clk 0:02:28.3]} 15. Nd4
{[%clk 0:02:10.9]} 15... Bg6 {[%clk 0:02:27.9]} 16. Rxe8+ {[%clk 0:02:08.2]}
16... Qxe8 {[%clk 0:02:27.4]} 17. Ndb5 {[%clk 0:02:01.4]} 17... Bxg3 {[%clk
0:02:08.4]} 18. hxg3 {[%clk 0:01:59.7]} 18... Qc6 {[%clk 0:02:06.5]} 19. Nd4
{[%clk 0:01:54.6]} 19... Qc4 {[%clk 0:02:05.7]} 20. Nb3 {[%clk 0:01:47.4]} 20...
Re8 {[%clk 0:02:00.6]} 21. Qd4 {[%clk 0:01:43.4]} 21... Qxd4 {[%clk 0:01:48.6]}
22. Nxd4 {[%clk 0:01:43.1]} 22... c5 {[%clk 0:01:49.2]} 23. Ndb5 {[%clk
0:01:41.7]} 23... a6 {[%clk 0:01:42.5]} 24. Nd6 {[%clk 0:01:41.1]} 24... Re7
{[%clk 0:01:39.8]} 25. Nce4 {[%clk 0:01:34.8]} 25... Nxe4 {[%clk 0:01:38.4]} 26.
fxe4 {[%clk 0:01:33.2]} 26... Bxe4 {[%clk 0:01:26.5]} 27. Re1 {[%clk 0:01:29.2]}
27... f5 {[%clk 0:01:24.9]} 28. Nxf5 {[%clk 0:01:27.6]} 28... Re6 {[%clk
0:01:22.8]} 29. Nxh6+ {[%clk 0:01:19.3]} 29... Rxh6 {[%clk 0:01:20.5]} 30. Rxe4
{[%clk 0:01:19]} 30... Rd6 {[%clk 0:01:18.5]} 31. Re2 {[%clk 0:01:15.7]} 31...
Kf7 {[%clk 0:01:18]} 32. Kg2 {[%clk 0:01:15.6]} 32... Kf6 {[%clk 0:01:18]} 33.
f4 {[%clk 0:01:14.8]} 33... gxf4 {[%clk 0:01:16.9]} 34. gxf4 {[%clk 0:01:15.2]}
34... Rd1 {[%clk 0:01:11.5]} 35. Kf3 {[%clk 0:01:14.3]} 35... b5 {[%clk
0:01:08.7]} 36. Ke3 {[%clk 0:01:09.3]} 36... Kf5 {[%clk 0:01:07.5]} 37. Rd2
{[%clk 0:01:05.4]} 37... Rxd2 {[%clk 0:01:07.1]} 38. Kxd2 {[%clk 0:01:05.6]}
38... Kxf4 {[%clk 0:01:08]} 39. Kd3 {[%clk 0:01:00.7]} 39... Ke5 {[%clk
0:01:06.3]} 40. c4 {[%clk 0:00:58.4]} 40... b4 {[%clk 0:01:02.4]} 41. Ke3 {[%clk
0:00:53.5]} 41... Kf5 {[%clk 0:00:55.6]} 42. Kf3 {[%clk 0:00:53]} 42... a5
{[%clk 0:00:53.3]} 43. b3 {[%clk 0:00:51.1]} 43... Ke5 {[%clk 0:00:51.9]} 44.
Ke3 {[%clk 0:00:51.3]} 44... Kf5 {[%clk 0:00:52]} 45. Kf3 {[%clk 0:00:51.7]}
45... Ke5 {[%clk 0:00:52.5]} 46. Ke3 {[%clk 0:00:52.1]} 46... Kf5 {[%clk
0:00:52.9]} 47. Kf3 {[%clk 0:00:52.5]} 1/2-1/2

[Event "Early-Titled-Tuesday-Blitz-August-29-2023"]
[Site "Chess.com"]
[Date "2023.08.29"]
[Round "10"]
[White "aranibos"]
[Black "Cherneevo_23"]
[Result "0-1"]
[WhiteElo "2289"]
[BlackElo "2420"]
[TimeControl "180+1"]
[EndTime "9:52:26 PDT"]
[Termination "Cherneevo_23 won by resignation"]

1. Nf3 {[%clk 0:03:00.9]} 1... Nf6 {[%clk 0:02:59.1]} 2. d4 {[%clk 0:03:01.1]}
2... g6 {[%clk 0:02:58.7]} 3. c3 {[%clk 0:02:58.6]} 3... Bg7 {[%clk 0:02:58.5]}
4. Bg5 {[%clk 0:02:58.4]} 4... d5 {[%clk 0:02:57.9]} 5. Nbd2 {[%clk 0:02:58.7]}
5... O-O {[%clk 0:02:57.9]} 6. e3 {[%clk 0:02:58.8]} 6... c6 {[%clk 0:02:57.7]}
7. Bd3 {[%clk 0:02:58.9]} 7... Nbd7 {[%clk 0:02:57.8]} 8. h4 {[%clk 0:02:58.9]}
8... h5 {[%clk 0:02:52.3]} 9. Ne5 {[%clk 0:02:53.2]} 9... Nxe5 {[%clk
0:02:51.6]} 10. dxe5 {[%clk 0:02:52.1]} 10... Ng4 {[%clk 0:02:51.6]} 11. Bf4
{[%clk 0:02:19.5]} 11... Nxe5 {[%clk 0:02:50.4]} 12. Bc2 {[%clk 0:02:16.3]}
12... Qb6 {[%clk 0:02:43.6]} 13. Rb1 {[%clk 0:02:08.9]} 13... Be6 {[%clk
0:02:37.1]} 14. O-O {[%clk 0:02:05.9]} 14... Rad8 {[%clk 0:02:35.8]} 15. Nb3
{[%clk 0:02:02.6]} 15... Ng4 {[%clk 0:02:34.6]} 16. Nd4 {[%clk 0:02:01]} 16...
Bc8 {[%clk 0:02:33.9]} 17. Bg3 {[%clk 0:01:58.2]} 17... e5 {[%clk 0:02:33]} 18.
Ne2 {[%clk 0:01:49.7]} 18... f5 {[%clk 0:02:30.3]} 19. b4 {[%clk 0:01:45.3]}
19... Be6 {[%clk 0:02:23.5]} 20. a4 {[%clk 0:01:43.9]} 20... Qc7 {[%clk
0:02:19.3]} 21. Bb3 {[%clk 0:01:42.5]} 21... f4 {[%clk 0:02:14.1]} 22. exf4
{[%clk 0:01:41.4]} 22... exf4 {[%clk 0:02:13.9]} 23. Nxf4 {[%clk 0:01:38.3]}
23... Rxf4 {[%clk 0:02:12.9]} 24. Bxf4 {[%clk 0:01:26.4]} 24... Qxf4 {[%clk
0:02:12.1]} 25. g3 {[%clk 0:01:27]} 25... Qf7 {[%clk 0:02:07]} 26. Bc2 {[%clk
0:01:24.3]} 26... Bf5 {[%clk 0:02:02.6]} 27. Bxf5 {[%clk 0:01:23.4]} 27... Qxf5
{[%clk 0:02:02.4]} 28. Qd2 {[%clk 0:01:20.3]} 28... Ne5 {[%clk 0:02:01.2]} 29.
Qe3 {[%clk 0:01:00.3]} 29... b6 {[%clk 0:01:25.8]} 30. a5 {[%clk 0:00:59.3]}
30... Nc4 {[%clk 0:01:16.5]} 31. Qe7 {[%clk 0:00:58.1]} 31... Qd7 {[%clk
0:01:11.7]} 32. Qg5 {[%clk 0:00:53.8]} 32... Kh7 {[%clk 0:01:09.2]} 33. axb6
{[%clk 0:00:52.3]} 33... axb6 {[%clk 0:01:08.2]} 34. Rbe1 {[%clk 0:00:50.4]}
34... Re8 {[%clk 0:01:07.5]} 35. Rxe8 {[%clk 0:00:45.9]} 35... Qxe8 {[%clk
0:01:07.3]} 36. Ra1 {[%clk 0:00:45.9]} 36... Ne5 {[%clk 0:01:00.8]} 37. Kg2
{[%clk 0:00:42.1]} 37... Qf7 {[%clk 0:01:00.5]} 38. f4 {[%clk 0:00:38.7]} 38...
Ng4 {[%clk 0:01:00.3]} 39. Re1 {[%clk 0:00:28.8]} 39... Bf6 {[%clk 0:00:59.1]}
0-1